fUST/lending_fUST_20250505
["ID","MTS","AMOUNT","RATE_DAILY","PERIOD"]
[359970949,1746456643057,-500.0,0.00035,2]
[359970950,1746456643067,-398.0593844,0.00035,5]
[359970951,1746456643076,-500.0,0.00035,5]
[359970952,1746456643085,-2447.03042008,0.00035,15]
[359970953,1746456643095,-191.0,0.00035,31]
[359970954,1746456643104,-397.74728841,0.00035054,2]
[359970955,1746456643113,-547.10421434,0.00035075,2]
[359970956,1746456643122,-288.42308172,0.00035099,2]
[359970957,1746456643132,-259.85508877,0.00035141,32]
[359970958,1746456643141,-160.0,0.00035199,2]
[359970959,1746456643151,-153.0,0.00035205,30]
[359970960,1746456643160,-397.74728841,0.00035208,2]
[359970961,1746456643169,-970.25,0.00035222,3]
[359970962,1746456643179,-152.94150842,0.00035322,2]
[359970963,1746456643188,-259.85508877,0.00035348,32]
[359970964,1746456643198,-397.74728841,0.00035362,2]
[359970965,1746456643207,-160.0,0.00035373,4]
[359970966,1746456643217,-1507.11098197,0.00035411,120]
[359970967,1746456643226,-158.523181,0.00035442,10]
[359970968,1746456643236,-547.10421435,0.00035455,2]
[359970969,1746456643246,-2184.16369783,0.00035496,3]
[359970970,1746456643255,-525.699078,0.00035496,3]
[359970978,1746456646302,-57.37664387,0.00035496,3]
[359970979,1746456646311,-1706.46700163,0.00035506,3]
[359971490,1746456677503,1000.0,0.00026591,2]
[359972438,1746456903302,854.86816081,0.00018,2]
[359972804,1746457203175,854.86816081,0.00018,2]
[359972828,1746457503173,825.16037367,0.00018,2]
[359972834,1746457570731,-218.26319114,0.00023,4]
[359972835,1746457576178,-153.0,0.00023,4]
[359972837,1746457625141,-128.73680886,0.00023,4]
[359972838,1746457625163,-500.0,0.00025,4]
[359972839,1746457625194,-153.48465624,0.00027197,2]
[359972840,1746457625218,-1000.0,0.00027297,2]
[359972841,1746457625239,-200.13432905,0.00027297,2]
[359972842,1746457625261,-250.0,0.00027297,2]
[359972843,1746457625283,-231.717182,0.00027397,2]
[359972844,1746457625305,-160.0,0.00031538,2]
[359972845,1746457625327,-246.09534841,0.000329,2]
[359972846,1746457625351,-202.50939032,0.000329,27]
[359972847,1746457625372,-160.0,0.00033059,2]
[359972848,1746457625409,-500.0,0.00033061,7]
[359972849,1746457625442,-553.91928447,0.00033061,7]
[359972850,1746457625463,-320.0,0.00033061,3]
[359972851,1746457625484,-12140.66316357,0.00033062,2]
[359972852,1746457631139,-1938.96541803,0.00033062,2]
[359972853,1746457643093,-200.13432905,0.00027297,2]
[359972854,1746457643116,-972.08457601,0.00033062,2]
[359972855,1746457646121,-344.71687044,0.00033062,2]
[359972859,1746457746135,-1000.0,0.00027297,2]
[359972860,1746457746156,-500.0,0.0003,10]
[359972861,1746457746177,-260.20459285,0.00030962,2]
[359972863,1746457813544,234.320015,0.00027397,2]
[359972922,1746457832290,-250.0,0.00032639,2]
[359972925,1746457832301,-207.70806914,0.000329,27]
[359972928,1746457832311,-11320.5758919,0.00032913,2]
[359972931,1746457832321,-1000.0,0.00032962,2]
[359972933,1746457832331,-595.0,0.00033,10]
[359972935,1746457832341,-207.70806912,0.00033141,28]
[359972937,1746457832351,-234.320015,0.00033165,2]
[359972940,1746457832362,-207.70806912,0.00033383,28]
[359972942,1746457832372,-207.70806912,0.00033624,29]
[359972943,1746457832382,-207.70806912,0.00033866,29]
[359972944,1746457832391,-708.0,0.00034051,2]
[359972945,1746457832401,-2242.0,0.00034051,2]
[359972946,1746457832411,-207.70806912,0.00034107,30]
[359972947,1746457832422,-207.70806912,0.00034348,30]
[359972948,1746457832431,-156.8881294,0.00034355,4]
[359972949,1746457832441,-153.0,0.00034478,30]
[359972950,1746457832451,-207.70806912,0.0003459,31]
[359972951,1746457832460,-207.70806912,0.00034831,31]
[359972952,1746457832470,-160.0,0.00034999,2]
[359972953,1746457832479,-2518.04744514,0.00035,15]
[359972954,1746457832489,-207.70806912,0.00035072,32]
[359972955,1746457832498,-19200.11390072,0.000351,2]
[359972956,1746457832510,-606.84252089,0.000351,2]
[359972966,1746457838409,-7120.09357839,0.000351,2]
[359972967,1746457838419,-205.38984417,0.000351,2]
[359972968,1746457838430,-29100.290351,0.000352,30]
[359972969,1746457838442,-160.0,0.000352,30]
[359972970,1746457838451,-841.77443764,0.000352,30]
[359972971,1746457838461,-207.70806912,0.00035314,32]
[359972972,1746457838470,-169.33480937,0.00035315,2]
[359972973,1746457838481,-501.01697973,0.00035333,5]
[359972974,1746457838491,-572.61638,0.00035361,30]
[359972975,1746457838501,-169.33480935,0.00035363,2]
[359972976,1746457838510,-1771.21579308,0.00035395,3]
[359972977,1746457838520,-495.61436358,0.00035395,3]
[359972978,1746457838529,-3962.47159077,0.00035398,2]
[359972979,1746457838538,-5096.44672047,0.000354,2]
[359972980,1746457838547,-1223.71,0.00035405,3]
[359972981,1746457838556,-611.86,0.00035405,3]
[359972982,1746457838565,-305.93,0.00035405,3]
[359972983,1746457838574,-1771.21579308,0.00035405,3]
[359972984,1746457838583,-495.61436358,0.00035405,3]
[359972985,1746457838593,-160.0,0.00035405,3]
[359972986,1746457838602,-841.77443764,0.00035405,3]
[359972987,1746457838611,-160.0,0.00035405,3]
[359972988,1746457838621,-160.0,0.00035405,3]
[359972989,1746457838630,-12607.13495863,0.00035405,3]
[359972990,1746457838640,-10627.2947585,0.00035405,3]
[359972991,1746457838649,-2973.68618148,0.00035405,3]
[359972992,1746457838659,-12398.5105516,0.00035406,3]
[359972993,1746457838668,-3469.30054506,0.00035406,3]
[359972994,1746457838677,-160.0,0.00035406,3]
[359972995,1746457838687,-841.77443764,0.00035406,3]
[359972996,1746457838697,-169.33480935,0.00035411,2]
[359972997,1746457838706,-160.0,0.00035412,2]
[359972998,1746457838715,-48216.14629231,0.00035415,3]
[359972999,1746457838725,-159768.10247147,0.00035415,2]
[359973011,1746457846105,-152.96,0.00035405,3]
[359973012,1746457846118,-269.662525,0.00035415,2]
[359973013,1746457846511,-1860.80668477,0.00035415,2]
[359973014,1746457846523,-89387.11705544,0.00035415,2]
[359973015,1746457846532,-70452.987537,0.00035416,2]
[359974837,1746458739102,-1046.68831534,0.00025204,13]
[359974838,1746458757088,-182.28152651,0.00025204,13]
[359974841,1746458825101,-363.32271049,0.00025104,2]
[359974842,1746458825123,-300.0,0.00025199,2]
[359974843,1746458825143,-2124.41061563,0.000252,30]
[359974844,1746458827089,-1027.45706665,0.000252,30]
[359974845,1746458833081,-632.35888885,0.000252,30]
[359974846,1746458849090,-1140.64641062,0.000252,30]
[359974847,1746458849118,-2337.36006531,0.000252,30]
[359974849,1746458893594,2098.54762459,0.000125,2]
[359974850,1746458902469,825.64488063,0.000176,2]
[359974851,1746458916882,1000.0,0.0001,2]
[359974855,1746458920897,1733.14598539,0.00015,2]
[359974856,1746458934482,-500.0,0.00023104,2]
[359974858,1746458946314,-77.76908385,0.00023104,2]
[359974859,1746458946338,-207.3951496,0.00024301,2]
[359974860,1746458946359,-150.999999,0.00025,5]
[359974861,1746458946382,-267.35303647,0.000251,2]
[359974862,1746458946409,-300.0,0.00025199,2]
[359974863,1746458946432,-11850.33284421,0.000252,30]
[359974864,1746458946455,-182.23035355,0.000252,30]
[359974865,1746458946486,-242.5208317,0.00025204,13]
[359974866,1746458946509,-500.0,0.00025497,2]
[359974867,1746458946531,-500.0,0.00025497,2]
[359974868,1746458946554,-365.64050656,0.00025497,2]
[359974869,1746458946576,-500.0,0.00025497,2]
[359974870,1746458946601,-500.0,0.00025497,2]
[359974871,1746458946624,-500.0,0.00025497,2]
[359974872,1746458946646,-500.0,0.00025497,2]
[359974873,1746458946670,-500.0,0.00025497,2]
[359974874,1746458946694,-500.0,0.00025497,2]
[359974875,1746458946718,-500.0,0.00025497,2]
[359974876,1746458946744,-500.0,0.00025497,2]
[359974877,1746458946767,-500.0,0.00025497,2]
[359974878,1746458946788,-500.0,0.00025497,2]
[359974879,1746458946814,-500.0,0.00025497,2]
[359974880,1746458946837,-500.0,0.00025497,2]
[359974881,1746458946863,-500.0,0.00025497,2]
[359974882,1746458946887,-500.0,0.00025497,2]
[359974883,1746458946910,-250.0,0.00025497,2]
[359974884,1746458946932,-500.0,0.00025497,2]
[359974885,1746458946956,-500.0,0.00025497,2]
[359974886,1746458946978,-500.0,0.00025497,2]
[359974887,1746458946999,-500.0,0.00025497,2]
[359974888,1746458947023,-500.0,0.00025497,2]
[359974889,1746458947046,-500.0,0.00025497,2]
[359974890,1746458947230,-500.0,0.00025497,2]
[359974891,1746458947254,-500.0,0.00025497,2]
[359974892,1746458947277,-205.04039259,0.00025497,2]
[359974893,1746458947300,-500.0,0.00025497,2]
[359974894,1746458947325,-500.0,0.00025497,2]
[359974895,1746458947346,-233.31587737,0.00025497,2]
[359974896,1746458947369,-500.0,0.00025497,2]
[359974897,1746458947390,-500.0,0.00025497,2]
[359974898,1746458947418,-500.0,0.00025497,2]
[359974899,1746458947440,-441.08943706,0.00025497,2]
[359974900,1746458947473,-499.99999999,0.00025497,2]
[359974901,1746458947499,-16391.5283109,0.00025498,2]
[359974902,1746458947521,-502.90072755,0.00025874,2]
[359974903,1746458947544,-238.0723156,0.00026,30]
[359974904,1746458947568,-300.0,0.00026393,2]
[359974905,1746458947590,-10000.0,0.00026394,2]
[359974906,1746458947612,-1779.9970835,0.00026394,2]
[359974907,1746458947640,-200.82325166,0.000269,16]
[359974908,1746458947663,-322.81873163,0.00026999,2]
[359974909,1746458947686,-645.67502073,0.00026999,2]
[359974910,1746458947710,-406.01499872,0.00026999,2]
[359974911,1746458947733,-500.0,0.00027,10]
[359974912,1746458947756,-20460.83242117,0.00027,2]
[359974913,1746458948274,-500.0,0.00025497,2]
[359974914,1746458948296,-506.62093806,0.00027,2]
[359974915,1746458949173,-867.50404941,0.00027,2]
[359974917,1746458959079,-1727.17650538,0.00027,2]
[359974918,1746458959117,-500.0,0.00027088,2]
[359974919,1746458959155,-500.0,0.00027088,2]
[359974920,1746458959192,-500.0,0.00027088,2]
[359974921,1746458959229,-500.0,0.00027088,2]
[359974922,1746458959266,-500.0,0.00027088,2]
[359974923,1746458959288,-1200.0,0.00027088,2]
[359974924,1746458959307,-4910.23524498,0.00027089,2]
[359974925,1746458959326,-500.0,0.000271,2]
[359974926,1746458959347,-500.0,0.000271,2]
[359974927,1746458959367,-507.78518072,0.000271,2]
[359974928,1746458959389,-420.0,0.00027293,2]
[359974929,1746458959413,-191.51922756,0.0002739,21]
[359974930,1746458959440,-200.82325157,0.000279,18]
[359974931,1746458959460,-241.44052861,0.00028,10]
[359974932,1746458959483,-577.76908385,0.00028104,2]
[359974933,1746458959509,-200.82325157,0.000284,19]
[359974934,1746458959530,-470.58654754,0.00028522,2]
[359974935,1746458959550,-281.93987747,0.000286,2]
[359974936,1746458959569,-201.13358039,0.000286,5]
[359974937,1746458959591,-500.0,0.000286,5]
[359974938,1746458959617,-200.82325157,0.000289,20]
[359974939,1746458959643,-200.82325157,0.000294,20]
[359974940,1746458959665,-1200.0,0.00029411,2]
[359974941,1746458959686,-280.0,0.00029562,2]
[359974942,1746458959711,-200.82325157,0.000299,21]
[359974943,1746458959732,-500.0,0.0003,10]
[359974944,1746458959755,-160.0,0.0003,30]
[359974945,1746458959778,-41.48274998,0.0003,30]
[359974946,1746458967086,-800.29168766,0.0003,30]
[359974947,1746458967106,-267.35303645,0.00030165,2]
[359974948,1746458967132,-200.82325157,0.000304,22]
[359974949,1746458967157,-200.82325157,0.000309,23]
[359974950,1746458967178,-157.72,0.00030995,2]
[359974951,1746458967200,-500.0,0.00031,5]
[359974952,1746458967224,-70.14877275,0.000314,24]
[359974953,1746458969094,-130.67447882,0.000314,24]
[359974955,1746458976620,500.0,0.00025497,2]
[359974956,1746458976647,500.0,0.00025497,2]
[359974957,1746458976673,450.33806678,0.00025497,2]
[359974978,1746459032441,-267.35303645,0.00025397,2]
[359974979,1746459032451,-300.0,0.00025495,2]
[359974980,1746459032461,-300.0,0.00025496,2]
[359974981,1746459032471,-300.0,0.00025496,2]
[359974982,1746459032480,-300.0,0.00025496,2]
[359974983,1746459032491,-300.0,0.00025496,2]
[359974984,1746459032501,-1200.0,0.00025496,2]
[359974985,1746459032512,-49.66193322,0.00025497,2]
[359974986,1746459032521,-500.0,0.00025497,2]
[359974987,1746459032531,-500.0,0.00025497,2]
[359974988,1746459032541,-500.0,0.00025497,2]
[359974989,1746459032551,-275.41125578,0.00025497,2]
[359974990,1746459032561,-500.0,0.00025497,2]
[359974991,1746459032571,-500.0,0.00025497,2]
[359974992,1746459032581,-500.0,0.00025497,2]
[359974993,1746459032591,-500.0,0.00025497,2]
[359974994,1746459032600,-500.0,0.00025497,2]
[359974995,1746459032610,-500.0,0.00025497,2]
[359974996,1746459032619,-500.0,0.00025497,2]
[359974997,1746459032628,-500.0,0.00025497,2]
[359974998,1746459032638,-500.0,0.00025497,2]
[359974999,1746459032647,-500.0,0.00025497,2]
[359975000,1746459032657,-500.0,0.00025497,2]
[359975001,1746459032667,-500.0,0.00025497,2]
[359975002,1746459032676,-500.0,0.00025497,2]
[359975003,1746459032685,-500.0,0.00025497,2]
[359975004,1746459032695,-500.0,0.00025497,2]
[359975005,1746459032704,-500.0,0.00025497,2]
[359975006,1746459032714,-500.0,0.00025497,2]
[359975007,1746459032724,-500.0,0.00025497,2]
[359975008,1746459032733,-500.0,0.00025497,2]
[359975009,1746459032742,-450.0,0.00025497,2]
[359975010,1746459032752,-500.0,0.00025497,2]
[359975011,1746459032761,-500.0,0.00025497,2]
[359975012,1746459032771,-500.0,0.00025497,2]
[359975013,1746459032780,-500.0,0.00025497,2]
[359975014,1746459032789,-500.0,0.00025497,2]
[359975015,1746459032799,-500.0,0.00025497,2]
[359975016,1746459032809,-500.0,0.00025497,2]
[359975017,1746459032818,-500.0,0.00025497,2]
[359975018,1746459032828,-500.0,0.00025497,2]
[359975019,1746459032837,-500.0,0.00025497,2]
[359975020,1746459032847,-500.0,0.00025497,2]
[359975021,1746459032857,-500.0,0.00025497,2]
[359975022,1746459032866,-500.0,0.00025497,2]
[359975023,1746459032876,-500.0,0.00025497,2]
[359975024,1746459032886,-500.0,0.00025497,2]
[359975025,1746459032895,-500.0,0.00025497,2]
[359975026,1746459032904,-500.0,0.00025497,2]
[359975027,1746459032913,-500.0,0.00025497,2]
[359975028,1746459032923,-500.0,0.00025497,2]
[359975029,1746459032932,-500.0,0.00025497,2]
[359975030,1746459032942,-500.0,0.00025497,2]
[359975031,1746459032952,-500.0,0.00025497,2]
[359975032,1746459032963,-500.0,0.00025497,2]
[359975033,1746459032973,-500.0,0.00025497,2]
[359975034,1746459032983,-500.0,0.00025497,2]
[359975035,1746459032993,-500.0,0.00025497,2]
[359975036,1746459033002,-500.0,0.00025497,2]
[359975037,1746459033012,-293.38393265,0.00025497,2]
[359975038,1746459033021,-500.0,0.00025497,2]
[359975039,1746459033031,-500.0,0.00025497,2]
[359975040,1746459033041,-500.0,0.00025497,2]
[359975041,1746459033050,-500.0,0.000255,2]
[359975042,1746459033059,-500.0,0.000255,2]
[359975043,1746459033068,-500.0,0.000255,2]
[359975044,1746459033077,-500.0,0.000255,2]
[359975045,1746459033086,-344.76708392,0.000255,2]
[359975046,1746459033095,-500.0,0.000255,2]
[359975047,1746459033105,-500.0,0.000255,2]
[359975048,1746459033114,-156.31457976,0.000255,2]
[359975049,1746459033126,-346.00592645,0.000255,2]
[359975050,1746459033283,-210.888013,0.00027397,2]
[359975051,1746459033293,-1000.0,0.00030979,5]
[359975052,1746459033303,-1000.0,0.00030979,5]
[359975053,1746459033312,-1000.0,0.00030979,5]
[359975054,1746459033321,-1000.0,0.00030979,5]
[359975055,1746459033331,-1000.0,0.00030979,2]
[359975056,1746459033341,-506.40841199,0.00030979,5]
[359975057,1746459033351,-200.82325157,0.000319,25]
[359975058,1746459033361,-200.82325157,0.000324,26]
[359975059,1746459033371,-701.9438867,0.0003241,2]
[359975060,1746459033381,-442.80394826,0.00032569,2]
[359975061,1746459033391,-200.82325157,0.000329,27]
[359975062,1746459033401,-500.0,0.00033,10]
[359975063,1746459033410,-370.8493873,0.00033122,2]
[359975064,1746459033423,-210.888013,0.00033165,2]
[359975065,1746459033433,-200.82325157,0.000334,28]
[359975066,1746459033443,-590.14265192,0.00033783,2]
[359975067,1746459033453,-200.82325157,0.000339,29]
[359975068,1746459033466,-500.0,0.00034,10]
[359975069,1746459033476,-1000.0,0.0003403,15]
[359975070,1746459033486,-1000.0,0.00034079,5]
[359975071,1746459033498,-160.0,0.00034099,3]
[359975072,1746459033509,-590.14265192,0.00034143,2]
[359975073,1746459033519,-590.14265192,0.00034291,2]
[359975074,1746459033529,-311.0649016,0.00034355,4]
[359975075,1746459033539,-200.82325157,0.000344,30]
[359975076,1746459033549,-2062.55335523,0.0003451,2]
[359975077,1746459033559,-590.14265192,0.00034612,2]
[359975078,1746459033570,-590.14265192,0.0003487,2]
[359975079,1746459033580,-200.82325157,0.000349,31]
[359975080,1746459033591,-500.000001,0.00035,2]
[359975081,1746459033601,-1000.0,0.00035,10]
[359975082,1746459033612,-169.521,0.00035,5]
[359975083,1746459033622,-541.9029668,0.00035,3]
[359975084,1746459033631,-340.73853099,0.00035067,2]
[359975085,1746459033641,-222.96088135,0.00035205,2]
[359975086,1746459033652,-169.33480935,0.00035218,2]
[359975087,1746459033661,-590.14265194,0.00035236,2]
[359975088,1746459033671,-500.0,0.00035236,2]
[359975089,1746459033681,-500.0,0.00035236,2]
[359975090,1746459033692,-151.0,0.00035236,2]
[359975091,1746459033702,-151.0,0.00035236,2]
[359975092,1746459033716,-151.0,0.00035236,2]
[359975093,1746459033726,-151.0,0.00035236,2]
[359975094,1746459033736,-500.0,0.00035263,2]
[359975095,1746459033747,-500.0,0.00035263,2]
[359975096,1746459033757,-151.0,0.00035263,2]
[359975097,1746459033767,-151.0,0.00035263,2]
[359975098,1746459033777,-151.0,0.00035263,2]
[359975099,1746459033787,-151.0,0.00035263,2]
[359975100,1746459033798,-500.0,0.00035291,2]
[359975101,1746459033808,-500.0,0.00035291,2]
[359975102,1746459033818,-29.46069785,0.00035291,2]
[359975103,1746459033831,-121.53930215,0.00035291,2]
[359975104,1746459033842,-151.0,0.00035291,2]
[359975105,1746459033852,-248.48814441,0.00035291,2]
[359975106,1746459033861,-151.0,0.00035291,2]
[359975107,1746459033871,-12607.13495863,0.00035306,3]
[359975108,1746459033881,-160.0,0.00035306,3]
[359975109,1746459033891,-841.77443764,0.00035306,3]
[359975110,1746459033901,-421.83547488,0.00035306,3]
[359975111,1746459033911,-182.23035355,0.00035306,3]
[359975112,1746459033921,-3542.43158608,0.00035306,3]
[359975113,1746459033931,-842.54441808,0.00035306,3]
[359975114,1746459033941,-160.0,0.00035306,3]
[359975115,1746459033951,-1356.23,0.00035306,3]
[359975116,1746459033961,-678.11,0.00035306,3]
[359975117,1746459033971,-5235.4836106,0.00035316,2]
[359975118,1746459033983,-414.1104975,0.00035316,2]
[359975133,1746459038674,-718.6152992,0.00024767,2]
[359975134,1746459038684,-500.0,0.00025497,2]
[359975136,1746459038693,-500.0,0.00025497,2]
[359975138,1746459038703,-310.37599252,0.00025497,2]
[359975140,1746459038712,-200.41115818,0.0003529,7]
[359975142,1746459038722,-510.18361125,0.0003529,7]
[359975144,1746459038731,-451.97251451,0.0003529,7]
[359975146,1746459038741,-339.06,0.00035306,3]
[359975148,1746459038750,-2519.62543442,0.00035316,2]
[359975149,1746459038762,-255.83204123,0.00035316,2]
[359975151,1746459038804,-53662.0224455,0.00035316,2]
[359975153,1746459038815,-183590.39500266,0.00035316,2]
[359975324,1746459040812,-1524.6970442,0.00035316,2]
[359975595,1746459043407,-2387.64260358,0.00035316,2]
[359975607,1746459043548,-120410.19132031,0.00035316,2]
[359975610,1746459043559,-500.0,0.00035318,2]
[359975612,1746459043568,-500.0,0.00035318,2]
[359975613,1746459043578,-301.51992579,0.00035318,2]
[359975615,1746459043587,-151.0,0.00035318,2]
[359975617,1746459043601,-151.0,0.00035318,2]
[359975619,1746459043610,-500.0,0.00035346,2]
[359975620,1746459043619,-500.0,0.00035346,2]
[359975622,1746459043627,-276.79645986,0.00035346,2]
[359975624,1746459043637,-151.0,0.00035346,2]
[359975626,1746459043646,-500.0,0.00035373,2]
[359975628,1746459043655,-500.0,0.00035373,5]
[359975629,1746459043665,-160.0,0.00035373,4]
[359975631,1746459043674,-500.0,0.00035373,2]
[359975633,1746459043683,-500.0,0.00035373,2]
[359975634,1746459043692,-245.0,0.00035373,2]
[359975636,1746459043701,-200.82325157,0.000354,32]
[359975638,1746459043710,-500.0,0.000354,2]
[359975640,1746459043719,-500.0,0.000354,2]
[359975642,1746459043729,-160.0,0.00035406,3]
[359975643,1746459043738,-215.0738,0.00035414,3]
[359975645,1746459043747,-160.0,0.00035414,7]
[359975647,1746459043757,-160.0,0.00035415,2]
[359975649,1746459043765,-500.0,0.00035428,2]
[359975651,1746459043774,-500.0,0.00035428,2]
[359975653,1746459043784,-442.80394826,0.00035451,3]
[359975654,1746459043793,-421.36572426,0.00035455,2]
[359975656,1746459043802,-500.0,0.00035455,2]
[359975658,1746459043812,-160.0,0.00035456,2]
[359975660,1746459043821,-160.0,0.00035457,2]
[359975662,1746459043830,-421.83547488,0.00035457,2]
[359975664,1746459043839,-12607.13495863,0.00035458,2]
[359975665,1746459043848,-182.23035355,0.00035458,2]
[359975667,1746459043857,-841.77443764,0.00035458,2]
[359975669,1746459043866,-500.0,0.00035483,2]
[359975671,1746459043875,-600.0,0.00035494,2]
[359975673,1746459043885,-5411.28458095,0.00035506,2]
[359975674,1746459043894,-500.0,0.0003551,2]
[359975676,1746459043903,-169.33480935,0.00035516,2]
[359975678,1746459043912,-1100.0,0.00035534,60]
[359975680,1746459043921,-500.0,0.00035537,2]
[359975681,1746459043929,-500.0,0.00035565,2]
[359975683,1746459043939,-500.0,0.00035592,2]
[359975685,1746459043948,-885.60789652,0.00035595,3]
[359975687,1746459043957,-210.63610452,0.00035595,3]
[359975689,1746459043966,-442.80394826,0.00035595,3]
[359975690,1746459043976,-442.80394826,0.00035596,3]
[359975692,1746459043986,-151.0,0.000356,18]
[359975694,1746459043996,-182.23035355,0.00035605,3]
[359975696,1746459044006,-841.77443764,0.00035606,3]
[359975698,1746459044015,-2656.82368956,0.00035606,3]
[359975700,1746459044025,-631.90831356,0.00035606,3]
[359975702,1746459044034,-501.19080263,0.00035615,10]
[359975703,1746459044043,-160.0,0.00035615,10]
[359975705,1746459044053,-24108.07314615,0.00035615,3]
[359975707,1746459044062,-125642.84436834,0.00035616,2]
[359975709,1746459044071,-160.0,0.00035616,3]
[359975711,1746459044080,-3000.0,0.00035616,14]
[359975713,1746459044090,-151.0,0.00035616,14]
[359975714,1746459044099,-151.0,0.00035616,14]
[359975716,1746459044108,-151.0,0.00035616,14]
[359975718,1746459044117,-558.35417367,0.00035616,21]
[359975720,1746459044128,-151.0,0.00035616,14]
[359975722,1746459044137,-216.647116,0.00035616,14]
[359975723,1746459044146,-151.0,0.00035616,14]
[359975725,1746459044155,-151.0,0.00035616,14]
[359975727,1746459044164,-400.0,0.00035616,14]
[359975729,1746459044173,-154.644101,0.00035616,14]
[359975731,1746459044182,-151.265392,0.00035616,14]
[359975733,1746459044190,-151.0,0.00035616,14]
[359975734,1746459044198,-151.0,0.00035616,14]
[359975736,1746459044207,-151.0,0.00035616,14]
[359975738,1746459044216,-151.0,0.00035616,14]
[359975740,1746459044227,-151.0,0.00035616,14]
[359975742,1746459044236,-151.0,0.00035616,14]
[359975743,1746459044245,-500.0,0.00035616,14]
[359975745,1746459044254,-151.0,0.00035616,14]
[359975747,1746459044263,-151.0,0.00035616,14]
[359975749,1746459044272,-400.0,0.00035616,14]
[359975751,1746459044281,-151.0,0.00035616,14]
[359975752,1746459044290,-151.0,0.00035616,14]
[359975754,1746459044299,-151.0,0.00035616,14]
[359975756,1746459044308,-151.0,0.00035616,14]
[359975758,1746459044318,-151.0,0.00035616,14]
[359975760,1746459044327,-151.0,0.00035616,14]
[359975761,1746459044336,-152.080082,0.00035616,14]
[359975763,1746459044345,-158.255058,0.00035616,14]
[359975765,1746459044354,-151.0,0.00035616,14]
[359975767,1746459044363,-1500.0,0.00035616,30]
[359975769,1746459044372,-400.0,0.00035616,14]
[359975770,1746459044380,-2309.33,0.00035616,14]
[359975772,1746459044390,-200.0,0.00035616,14]
[359975774,1746459044399,-400.0,0.00035616,14]
[359975776,1746459044408,-400.0,0.00035616,14]
[359975777,1746459044418,-400.0,0.00035616,14]
[359975779,1746459044432,-400.0,0.00035616,14]
[359975781,1746459044441,-400.0,0.00035616,14]
[359975783,1746459044451,-151.0,0.00035616,14]
[359975785,1746459044461,-151.0,0.00035616,14]
[359975787,1746459044471,-151.0,0.00035616,14]
[359975788,1746459044483,-400.0,0.00035616,14]
[359975790,1746459044493,-151.0,0.00035616,14]
[359975792,1746459044504,-151.0,0.00035616,14]
[359975794,1746459044513,-400.0,0.00035616,14]
[359975796,1746459044522,-400.0,0.00035616,14]
[359975798,1746459044532,-400.0,0.00035616,14]
[359975800,1746459044541,-280.29936029,0.00035616,14]
[359975802,1746459044550,-400.0,0.00035616,14]
[359975804,1746459044560,-588.39,0.00035616,14]
[359975806,1746459044570,-400.0,0.00035616,14]
[359975808,1746459044579,-400.0,0.00035616,14]
[359975810,1746459044588,-407.57637066,0.00035616,14]
[359975812,1746459044597,-154.669196,0.00035616,14]
[359975814,1746459044608,-400.0,0.00035616,14]
[359975816,1746459044617,-242.16000946,0.00035616,14]
[359975818,1746459044627,-400.0,0.00035616,14]
[359975820,1746459044636,-199.64593122,0.00035616,14]
[359975822,1746459044646,-400.0,0.00035616,14]